fUST/lending_fUST_20250627
["ID","MTS","AMOUNT","RATE_DAILY","PERIOD"]
[368119738,1751029850637,-460.0,0.00021643,2]
[368119739,1751029850646,-5421.31,0.00021643,2]
[368119740,1751029850655,-460.0,0.00021643,2]
[368119741,1751029850664,-166.08289693,0.00021644,2]
[368119742,1751029850674,-10400.39089948,0.0002168,2]
[368119743,1751029850683,-365.776085,0.00021696,2]
[368119744,1751029850692,-365.776085,0.00021696,2]
[368119745,1751029850701,-151.0,0.00021739,4]
[368119746,1751029850710,-238.482201,0.00021762,2]
[368119747,1751029850720,-238.482201,0.00021762,2]
[368119748,1751029850729,-151.0,0.00021762,2]
[368119749,1751029850739,-151.0,0.00021762,2]
[368119750,1751029850748,-151.0,0.00021762,2]
[368119751,1751029850758,-151.0,0.00021762,2]
[368119752,1751029850768,-151.0,0.00021762,2]
[368119753,1751029850777,-337.726261,0.00021762,2]
[368119754,1751029850787,-337.726261,0.00021762,2]
[368119755,1751029850796,-10118.81432848,0.00021762,5]
[368119756,1751029850806,-89873.62717171,0.0002178,2]
[368119757,1751029850815,-325.549941,0.0002178,2]
[368119758,1751029850825,-325.549941,0.0002178,2]
[368119759,1751029850837,-1294.823434,0.0002178,2]
[368119760,1751029850847,-1294.823434,0.0002178,2]
[368119761,1751029850856,-166.08289693,0.00021836,2]
[368119762,1751029850866,-533.95028049,0.00021846,5]
[368119763,1751029850876,-151.0,0.00021869,4]
[368119764,1751029850886,-159.959375,0.000219,2]
[368119765,1751029850896,-3398.84,0.000219,2]
[368119766,1751029850907,-151.0,0.000219,2]
[368119767,1751029850917,-151.0,0.000219,2]
[368119768,1751029850927,-5000.0,0.00021914,2]
[368119769,1751029850936,-200.0,0.00021916,2]
[368119770,1751029850946,-620.0,0.00021916,2]
[368119771,1751029850955,-203.79692233,0.00021917,2]
[368119772,1751029850965,-460.0,0.00021917,2]
[368119773,1751029850974,-460.0,0.00021917,2]
[368119774,1751029850984,-460.0,0.00021917,2]
[368119775,1751029850995,-460.0,0.00021917,2]
[368119776,1751029851005,-460.0,0.00021917,2]
[368119777,1751029851014,-962.79,0.00021917,2]
[368119778,1751029851023,-460.0,0.00021917,2]
[368119779,1751029851032,-460.0,0.00021917,2]
[368119780,1751029851042,-527.97827967,0.00021917,2]
[368119781,1751029851051,-460.0,0.00021917,2]
[368119782,1751029851061,-189.10408648,0.00021917,2]
[368119783,1751029851071,-460.0,0.00021917,2]
[368119784,1751029851080,-151.0,0.00021917,2]
[368119785,1751029851089,-460.0,0.00021917,2]
[368119786,1751029851099,-872.16,0.00021917,2]
[368119787,1751029851109,-490.28,0.00021917,2]
[368119788,1751029851119,-3577.22,0.00021917,2]
[368119789,1751029851128,-676.53,0.00021917,2]
[368119790,1751029851138,-1544.03,0.00021917,2]
[368119791,1751029851148,-1861.18,0.00021917,2]
[368119792,1751029851158,-460.0,0.00021917,2]
[368119793,1751029851167,-2946.71,0.00021917,2]
[368119794,1751029851177,-6518.4,0.00021917,2]
[368119795,1751029851186,-460.0,0.00021917,2]
[368119796,1751029851195,-547.03226586,0.00021917,2]
[368119797,1751029851205,-460.0,0.00021917,2]
[368119798,1751029851214,-1266.37,0.00021917,2]
[368119799,1751029851224,-191.98992726,0.00021917,2]
[368119800,1751029851233,-460.0,0.00021917,2]
[368119801,1751029851243,-1132.2,0.00021917,2]
[368119802,1751029851252,-765.43,0.00021917,2]
[368119803,1751029851264,-460.0,0.00021917,2]
[368119804,1751029851273,-848.57,0.00021917,2]
[368119805,1751029851283,-460.0,0.00021917,2]
[368119806,1751029851292,-5598.03,0.00021917,2]
[368119807,1751029851302,-460.0,0.00021917,2]
[368119808,1751029851311,-807.46,0.00021917,2]
[368119809,1751029851320,-2217.11,0.00021917,2]
[368119810,1751029851329,-851.26,0.00021917,2]
[368119811,1751029851339,-1687.24,0.00021917,2]
[368119812,1751029851348,-464.33,0.00021917,2]
[368119813,1751029851358,-682.9,0.00021917,2]
[368119814,1751029851368,-460.0,0.00021917,2]
[368119815,1751029851378,-460.0,0.00021917,2]
[368119816,1751029851473,-626.65,0.00021917,2]
[368119817,1751029851483,-778.42,0.00021917,2]
[368119818,1751029851492,-1807.73,0.00021917,2]
[368119819,1751029851502,-2700.44,0.00021917,2]
[368119820,1751029851513,-1046.99,0.00021917,2]
[368119821,1751029851523,-252.88,0.00021917,2]
[368119822,1751029851532,-1874.32,0.00021917,2]
[368119823,1751029851541,-460.0,0.00021917,2]
[368119824,1751029851550,-1037.07,0.00021917,2]
[368119825,1751029851560,-408.46363728,0.00021917,2]
[368119826,1751029851569,-627.06,0.00021917,2]
[368119827,1751029851579,-460.0,0.00021917,2]
[368119828,1751029851588,-460.0,0.00021917,2]
[368119829,1751029851598,-665.9,0.00021917,2]
[368119830,1751029851607,-460.0,0.00021917,2]
[368119831,1751029851616,-3786.78,0.00021917,2]
[368119832,1751029851626,-1216.38,0.00021917,2]
[368119833,1751029851636,-727.16,0.00021917,2]
[368119834,1751029851646,-3017.37,0.00021917,2]
[368119835,1751029851655,-4525.56,0.00021917,2]
[368119836,1751029851664,-515.06,0.00021917,2]
[368119837,1751029851674,-2147.92,0.00021917,2]
[368119838,1751029851683,-954.2,0.00021917,2]
[368119839,1751029851692,-848.16,0.00021917,2]
[368119840,1751029851702,-464.02,0.00021917,2]
[368119841,1751029851711,-460.0,0.00021917,2]
[368119842,1751029851720,-5421.31,0.00021917,2]
[368119843,1751029851730,-460.0,0.00021917,2]
[368119844,1751029851739,-166.0,0.00021918,2]
[368119845,1751029851748,-150.0,0.00021918,2]
[368119846,1751029851759,-10118.81432848,0.00021969,6]
[368119847,1751029851768,-366.1147399,0.00021973,2]
[368119848,1751029851777,-366.1147399,0.00021973,2]
[368119849,1751029851786,-366.1147399,0.00021973,2]
[368119850,1751029851795,-366.1147399,0.00021973,2]
[368119851,1751029851803,-366.1147399,0.00021973,2]
[368119852,1751029851813,-366.1147399,0.00021973,2]
[368119853,1751029851822,-366.1147399,0.00021973,2]
[368119854,1751029851833,-366.1147399,0.00021973,2]
[368119855,1751029851843,-366.1147399,0.00021973,2]
[368119856,1751029851852,-366.1147399,0.00021973,2]
[368119857,1751029851861,-366.1147399,0.00021973,2]
[368119858,1751029851870,-500.0,0.00021973,2]
[368119859,1751029851881,-198.78382991,0.00021973,2]
[368119860,1751029851890,-500.0,0.00021973,2]
[368119861,1751029851899,-500.0,0.00021973,2]
[368119862,1751029851908,-500.0,0.00021973,2]
[368119863,1751029851918,-500.0,0.00021973,2]
[368119864,1751029851927,-500.0,0.00021973,2]
[368119865,1751029851936,-500.0,0.00021973,2]
[368119866,1751029851946,-500.0,0.00021973,2]
[368119867,1751029851955,-500.0,0.00021973,2]
[368119868,1751029851963,-500.0,0.00021973,2]
[368119869,1751029851972,-500.0,0.00021973,2]
[368119870,1751029851982,-500.0,0.00021973,2]
[368119871,1751029851991,-500.0,0.00021973,2]
[368119872,1751029852001,-600.0,0.00021973,2]
[368119873,1751029852011,-500.0,0.00021973,2]
[368119874,1751029852021,-500.0,0.00021973,2]
[368119875,1751029852030,-586.43269723,0.00021973,2]
[368119876,1751029852040,-500.0,0.00021973,2]
[368119877,1751029852049,-500.0,0.00021973,2]
[368119878,1751029852058,-500.0,0.00021973,2]
[368119879,1751029852068,-500.0,0.00021973,2]
[368119880,1751029852077,-500.0,0.00021973,2]
[368119881,1751029852086,-500.0,0.00021973,2]
[368119882,1751029852095,-500.0,0.00021973,2]
[368119883,1751029852105,-290.01545811,0.00021973,2]
[368119884,1751029852114,-500.60150751,0.00021973,2]
[368119885,1751029852124,-500.0,0.00021973,2]
[368119886,1751029852133,-500.0,0.00021973,2]
[368119887,1751029852142,-500.0,0.00021973,2]
[368119888,1751029852151,-500.0,0.00021973,2]
[368119889,1751029852161,-500.0,0.00021973,2]
[368119890,1751029852171,-500.0,0.00021973,2]
[368119891,1751029852180,-500.0,0.00021973,2]
[368119892,1751029852189,-544.82622425,0.00021973,2]
[368119893,1751029852198,-500.0,0.00021973,2]
[368119894,1751029852207,-500.0,0.00021973,2]
[368119895,1751029852217,-500.0,0.00021973,2]
[368119896,1751029852226,-500.0,0.00021973,2]
[368119897,1751029852235,-500.0,0.00021973,2]
[368119898,1751029852244,-500.0,0.00021973,2]
[368119899,1751029852253,-500.0,0.00021973,2]
[368119900,1751029852263,-500.0,0.00021973,2]
[368119901,1751029852273,-500.0,0.00021973,2]
[368119902,1751029852282,-500.0,0.00021973,2]
[368119903,1751029852291,-500.0,0.00021973,2]
[368119904,1751029852300,-500.0,0.00021973,2]
[368119905,1751029852310,-500.0,0.00021973,2]
[368119906,1751029852319,-500.0,0.00021973,2]
[368119907,1751029852328,-500.0,0.00021973,2]
[368119908,1751029852338,-500.0,0.00021973,2]
[368119909,1751029852347,-354.67317209,0.00021973,2]
[368119910,1751029852357,-200.0,0.00021999,2]
[368119911,1751029852366,-293.45627482,0.00021999,2]
[368119912,1751029852375,-42255.00915418,0.00022,2]
[368119913,1751029852385,-7370.65548769,0.00022,2]
[368119914,1751029852394,-480482.01102128,0.00022,2]
[368119915,1751029852403,-13737.58,0.00022,7]
[368119916,1751029852412,-194080.12,0.00022,7]
[368119917,1751029852422,-2000.0,0.00022,2]
[368119918,1751029852431,-2000.0,0.00022,2]
[368119919,1751029852440,-2000.0,0.00022,2]
[368119920,1751029852449,-557346.42589059,0.00022,2]
[368119921,1751029852458,-71837.64652747,0.00022,2]
[368119922,1751029852467,-1870.0,0.00022,14]
[368119923,1751029852477,-212.0,0.00022,2]
[368119924,1751029852486,-212.0,0.00022,2]
[368119925,1751029852495,-300.07739,0.00022,7]
[368119926,1751029852504,-250.0,0.00022,2]
[368119927,1751029852514,-250.0,0.00022,2]
[368119928,1751029852524,-250.0,0.00022,2]
[368119929,1751029852533,-250.0,0.00022,2]
[368119930,1751029852543,-250.0,0.00022,2]
[368119931,1751029852552,-250.0,0.00022,2]
[368119932,1751029852562,-250.0,0.00022,2]
[368119933,1751029852571,-250.0,0.00022,2]
[368119934,1751029852581,-250.0,0.00022,2]
[368119935,1751029852591,-250.0,0.00022,2]
[368119936,1751029852600,-250.0,0.00022,2]
[368119937,1751029852610,-250.0,0.00022,2]
[368119938,1751029852620,-309.3,0.00022,2]
[368119939,1751029852629,-151.0,0.00022,7]
[368119940,1751029852639,-252.296287,0.00022,7]
[368119941,1751029852649,-151.0,0.00022,7]
[368119942,1751029852658,-151.0,0.00022,7]
[368119943,1751029852668,-151.0,0.00022,7]
[368119944,1751029852677,-151.0,0.00022,7]
[368119945,1751029852687,-151.0,0.00022,7]
[368119946,1751029852696,-151.0,0.00022,7]
[368119947,1751029852705,-151.0,0.00022,7]
[368119948,1751029852714,-151.0,0.00022,7]
[368119949,1751029852723,-151.0,0.00022,7]
[368119950,1751029852732,-151.0,0.00022,7]
[368119951,1751029852741,-151.0,0.00022,7]
[368119952,1751029852750,-151.0,0.00022,7]
[368119953,1751029852759,-213.394378,0.00022,7]
[368119954,1751029852769,-151.0,0.00022,7]
[368119955,1751029852778,-151.0,0.00022,7]
[368119956,1751029852787,-279.158323,0.00022,7]
[368119957,1751029852798,-395.397538,0.00022,7]
[368119958,1751029852807,-395.397538,0.00022,7]
[368119959,1751029852816,-153.201281,0.00022,7]
[368119960,1751029852826,-151.0,0.00022,7]
[368119961,1751029852838,-280.313534,0.00022,7]
[368119962,1751029852848,-280.313534,0.00022,7]
[368119963,1751029852857,-151.0,0.00022,7]
[368119964,1751029852866,-151.0,0.00022,7]
[368119965,1751029852877,-280.313534,0.00022,7]
[368119966,1751029852886,-280.313534,0.00022,7]
[368119967,1751029852896,-444.860629,0.00022,7]
[368119968,1751029852905,-444.860629,0.00022,7]
[368119969,1751029852915,-444.860629,0.00022,7]
[368119970,1751029852925,-444.860629,0.00022,7]
[368119971,1751029852934,-151.0,0.00022,7]
[368119972,1751029852944,-151.0,0.00022,7]
[368119973,1751029852953,-151.0,0.00022,7]
[368119974,1751029852963,-151.0,0.00022,7]
[368119975,1751029852972,-2200.0,0.00022,2]
[368119976,1751029852981,-151.709042,0.00022,7]
[368119977,1751029852991,-151.0,0.00022,7]
[368119978,1751029853001,-215.216734,0.00022,7]
[368119979,1751029853010,-151.0,0.00022,7]
[368119980,1751029853020,-151.0,0.00022,7]
[368119981,1751029853031,-151.0,0.00022,7]
[368119982,1751029853041,-151.0,0.00022,7]
[368119983,1751029853051,-151.0,0.00022,7]
[368119984,1751029853061,-151.0,0.00022,7]
[368119985,1751029853070,-153.682943,0.00022,7]
[368119986,1751029853079,-151.0,0.00022,7]
[368119987,1751029853090,-151.0,0.00022,7]
[368119988,1751029853099,-151.0,0.00022,7]
[368119989,1751029853108,-151.0,0.00022,7]
[368119990,1751029853118,-151.0,0.00022,7]
[368119991,1751029853128,-151.0,0.00022,7]
[368119992,1751029853137,-151.0,0.00022,7]
[368119993,1751029853232,-151.0,0.00022,7]
[368119994,1751029853242,-151.0,0.00022,7]
[368119995,1751029853251,-151.0,0.00022,7]
[368119996,1751029853261,-151.0,0.00022,7]
[368119997,1751029853271,-151.0,0.00022,7]
[368119998,1751029853280,-151.0,0.00022,7]
[368119999,1751029853289,-207.68887,0.00022,7]
[368120000,1751029853299,-151.0,0.00022,7]
[368120001,1751029853309,-151.0,0.00022,7]
[368120002,1751029853318,-151.0,0.00022,7]
[368120003,1751029853328,-251.499196,0.00022,7]
[368120004,1751029853338,-151.0,0.00022,7]
[368120005,1751029853348,-151.0,0.00022,7]
[368120006,1751029853357,-151.0,0.00022,7]
[368120007,1751029853367,-151.0,0.00022,7]
[368120008,1751029853376,-151.0,0.00022,7]
[368120009,1751029853386,-151.0,0.00022,7]
[368120010,1751029853396,-151.0,0.00022,7]
[368120011,1751029853406,-151.0,0.00022,7]
[368120012,1751029853415,-151.0,0.00022,7]
[368120013,1751029853425,-151.0,0.00022,7]
[368120014,1751029853435,-151.0,0.00022,7]
[368120015,1751029853445,-151.0,0.00022,7]
[368120016,1751029853455,-151.0,0.00022,7]
[368120017,1751029853464,-151.0,0.00022,7]
[368120018,1751029853473,-151.0,0.00022,7]
[368120019,1751029853483,-151.0,0.00022,7]
[368120020,1751029853492,-151.0,0.00022,7]
[368120021,1751029853501,-151.0,0.00022,7]
[368120022,1751029853511,-151.0,0.00022,7]
[368120023,1751029853520,-151.0,0.00022,7]
[368120024,1751029853529,-151.980485,0.00022,7]
[368120025,1751029853539,-151.0,0.00022,7]
[368120026,1751029853548,-365.776085,0.00022,7]
[368120027,1751029853557,-365.776085,0.00022,7]
[368120028,1751029853567,-365.776085,0.00022,7]
[368120029,1751029853576,-365.776085,0.00022,7]
[368120030,1751029853585,-151.0,0.00022,7]
[368120031,1751029853596,-151.0,0.00022,7]
[368120032,1751029853606,-151.0,0.00022,7]
[368120033,1751029853615,-151.0,0.00022,7]
[368120034,1751029853625,-262.401285,0.00022,7]
[368120035,1751029853634,-262.401285,0.00022,7]
[368120036,1751029853643,-151.0,0.00022,7]
[368120037,1751029853652,-151.0,0.00022,7]
[368120038,1751029853662,-325.549941,0.00022,7]
[368120039,1751029853671,-325.549941,0.00022,7]
[368120040,1751029853680,-151.0,0.00022,7]
[368120041,1751029853689,-325.549941,0.00022,7]
[368120042,1751029853698,-325.549941,0.00022,7]
[368120043,1751029853708,-238.482201,0.00022,7]
[368120044,1751029853718,-238.482201,0.00022,7]
[368120045,1751029853728,-238.482201,0.00022,7]
[368120046,1751029853739,-238.482201,0.00022,7]
[368120047,1751029853749,-151.0,0.00022,7]
[368120048,1751029853759,-151.0,0.00022,7]
[368120049,1751029853769,-151.0,0.00022,7]
[368120050,1751029853780,-151.0,0.00022,7]
[368120051,1751029853789,-151.0,0.00022,7]
[368120052,1751029853799,-151.0,0.00022,7]
[368120053,1751029853808,-151.0,0.00022,7]
[368120054,1751029853817,-847.04181546,0.00022,7]
[368120055,1751029853827,-213.75309343,0.00022,7]
[368120056,1751029853840,-151.0,0.00022,4]
[368120057,1751029853850,-151.0,0.00022,7]
[368120058,1751029853860,-151.0,0.00022,7]
[368120059,1751029853869,-151.0,0.00022,7]
[368120060,1751029853878,-151.0,0.00022,7]
[368120061,1751029853888,-225.065116,0.00022,7]
[368120062,1751029853898,-1294.823434,0.00022,7]
[368120063,1751029853909,-1294.823434,0.00022,7]
[368120064,1751029853919,-1294.823434,0.00022,7]
[368120065,1751029853928,-1294.823434,0.00022,7]
[368120066,1751029853938,-151.0,0.00022,7]
[368120067,1751029853947,-151.0,0.00022,7]
[368120068,1751029853957,-151.0,0.00022,7]
[368120069,1751029853966,-151.0,0.00022,7]
[368120070,1751029853975,-151.0,0.00022,7]
[368120071,1751029853985,-151.0,0.00022,7]
[368120072,1751029853995,-156.592492,0.00022,7]
[368120073,1751029854006,-337.726261,0.00022,7]
[368120074,1751029854016,-337.726261,0.00022,7]
[368120075,1751029854026,-337.726261,0.00022,7]
[368120076,1751029854036,-337.726261,0.00022,7]
[368120077,1751029854045,-155.0,0.00022,2]
[368120078,1751029854054,-1059.846132,0.00022,2]
[368120079,1751029854063,-1059.846132,0.00022,2]
[368120080,1751029854073,-1059.846132,0.00022,2]
[368120081,1751029854082,-1059.846132,0.00022,2]
[368120082,1751029854091,-1059.846132,0.00022,2]
[368120083,1751029854102,-1059.846132,0.00022,2]
[368120084,1751029854111,-166.08289693,0.00022027,2]
[368120085,1751029854120,-10400.39089948,0.00022135,2]
[368120086,1751029854130,-10118.81432848,0.00022176,6]
[368120087,1751029854140,-200.0,0.0002219,2]
[368120088,1751029854149,-460.0,0.00022191,2]
[368120089,1751029854158,-460.0,0.00022191,2]
[368120090,1751029854168,-460.0,0.00022191,2]
[368120091,1751029854179,-460.0,0.00022191,2]
[368120092,1751029854190,-460.0,0.00022191,2]
[368120093,1751029854199,-962.79,0.00022191,2]
[368120094,1751029854209,-460.0,0.00022191,2]
[368120095,1751029854219,-163.82714785,0.00022191,2]
[368120096,1751029854229,-460.0,0.00022191,2]
[368120097,1751029854240,-460.0,0.00022191,2]
[368120098,1751029854250,-460.0,0.00022191,2]
[368120099,1751029854259,-460.0,0.00022191,2]
[368120100,1751029854269,-872.16,0.00022191,2]
[368120101,1751029854277,-490.28,0.00022191,2]
[368120102,1751029854287,-3577.22,0.00022191,2]
[368120103,1751029854296,-676.53,0.00022191,2]
[368120104,1751029854306,-1544.03,0.00022191,2]
[368120105,1751029854316,-1861.18,0.00022191,2]
[368120106,1751029854325,-460.0,0.00022191,2]
[368120107,1751029854335,-2946.71,0.00022191,2]
[368120108,1751029854345,-6518.4,0.00022191,2]
[368120109,1751029854354,-460.0,0.00022191,2]
[368120110,1751029854363,-1266.37,0.00022191,2]
[368120111,1751029854373,-460.0,0.00022191,2]
[368120112,1751029854382,-1132.2,0.00022191,2]
[368120113,1751029854391,-765.43,0.00022191,2]
[368120114,1751029854401,-460.0,0.00022191,2]
[368120115,1751029854410,-848.57,0.00022191,2]
[368120116,1751029854419,-460.0,0.00022191,2]
[368120117,1751029854428,-5598.03,0.00022191,2]
[368120118,1751029854438,-460.0,0.00022191,2]
[368120119,1751029854447,-807.46,0.00022191,2]
[368120120,1751029854457,-2217.11,0.00022191,2]
[368120121,1751029854467,-851.26,0.00022191,2]
[368120122,1751029854477,-1687.24,0.00022191,2]
[368120123,1751029854486,-464.33,0.00022191,2]
[368120124,1751029854496,-682.9,0.00022191,2]
[368120125,1751029854506,-460.0,0.00022191,2]
[368120126,1751029854516,-460.0,0.00022191,2]
[368120127,1751029854526,-626.65,0.00022191,2]
[368120128,1751029854535,-778.42,0.00022191,2]
[368120129,1751029854545,-1807.73,0.00022191,2]
[368120130,1751029854554,-2700.44,0.00022191,2]
[368120131,1751029854564,-1046.99,0.00022191,2]
[368120132,1751029854574,-1874.32,0.00022191,2]
[368120133,1751029854583,-476.05,0.00022191,2]
[368120134,1751029854592,-1037.07,0.00022191,2]
[368120135,1751029854601,-627.06,0.00022191,2]
[368120136,1751029854610,-460.0,0.00022191,2]
[368120137,1751029854620,-460.0,0.00022191,2]
[368120138,1751029854629,-665.9,0.00022191,2]
[368120139,1751029854639,-460.0,0.00022191,2]
[368120140,1751029854648,-3786.78,0.00022191,2]
[368120141,1751029854658,-1216.38,0.00022191,2]
[368120142,1751029854668,-727.16,0.00022191,2]
[368120143,1751029854677,-3017.37,0.00022191,2]
[368120144,1751029854687,-4525.56,0.00022191,2]
[368120145,1751029854697,-515.06,0.00022191,2]
[368120146,1751029854706,-2147.92,0.00022191,2]
[368120147,1751029854716,-954.2,0.00022191,2]
[368120148,1751029854725,-848.16,0.00022191,2]
[368120149,1751029854735,-464.02,0.00022191,2]
[368120150,1751029854745,-460.0,0.00022191,2]
[368120151,1751029854755,-5421.31,0.00022191,2]
[368120152,1751029854766,-460.0,0.00022191,2]
[368120153,1751029854775,-166.08289693,0.00022219,2]
[368120154,1751029854785,-631.0,0.00022235,2]
[368120155,1751029854877,-631.0,0.0002229,2]
[368120156,1751029854888,-2108.73060916,0.00022291,2]
[368120157,1751029854897,-160.05288507,0.00022345,2]
[368120158,1751029854908,-620.0,0.00022379,2]
[368120159,1751029854918,-10118.81432848,0.00022383,7]
[368120160,1751029854928,-200.0,0.00022399,2]
[368120161,1751029854937,-74131.49,0.000224,2]
[368120162,1751029854947,-250.0,0.000224,2]
[368120163,1751029854957,-250.0,0.000224,2]
[368120164,1751029854967,-250.0,0.000224,2]
[368120165,1751029854976,-250.0,0.000224,2]
[368120166,1751029854986,-250.0,0.000224,2]
[368120167,1751029854995,-151.0,0.000224,7]
[368120168,1751029855005,-166.08289693,0.00022411,2]
[368120169,1751029855016,-168.98752701,0.00022431,2]
[368120170,1751029855026,-151.0,0.00022452,7]
[368120171,1751029855035,-151.0,0.00022452,7]
[368120172,1751029855044,-151.0,0.00022452,7]
[368120173,1751029855054,-1059.846132,0.00022452,2]
[368120174,1751029855063,-1059.846132,0.00022452,2]
[368120175,1751029855074,-151.0,0.00022458,7]
[368120176,1751029855083,-151.0,0.00022458,7]
[368120177,1751029855093,-5000.0,0.00022462,2]
[368120178,1751029855103,-280.313534,0.00022465,7]
[368120179,1751029855112,-151.0,0.00022465,7]
[368120180,1751029855121,-280.313534,0.00022465,7]
[368120181,1751029855131,-151.0,0.00022465,7]
[368120182,1751029855140,-151.0,0.00022465,7]
[368120183,1751029855150,-151.0,0.00022465,7]
[368120184,1751029855159,-151.0,0.00022465,7]
[368120185,1751029855169,-151.0,0.00022465,7]
[368120186,1751029855178,-151.0,0.00022465,7]
[368120187,1751029855188,-151.0,0.00022465,7]
[368120188,1751029855197,-151.0,0.00022465,7]
[368120189,1751029855207,-151.0,0.00022465,7]
[368120190,1751029855217,-151.0,0.00022465,7]
[368120191,1751029855227,-151.0,0.00022465,7]
[368120192,1751029855236,-151.0,0.00022465,7]
[368120193,1751029855246,-151.0,0.00022465,7]
[368120194,1751029855255,-151.0,0.00022465,7]
[368120195,1751029855265,-151.0,0.00022465,7]
[368120196,1751029855274,-460.0,0.00022465,2]
[368120197,1751029855283,-460.0,0.00022465,2]
[368120198,1751029855292,-595.01503935,0.00022465,2]
[368120199,1751029855302,-460.0,0.00022465,2]
[368120200,1751029855311,-962.79,0.00022465,2]
[368120201,1751029855320,-163.11590857,0.00022465,2]
[368120202,1751029855330,-460.0,0.00022465,2]
[368120203,1751029855339,-325.549941,0.00022465,7]
[368120204,1751029855349,-325.549941,0.00022465,7]
[368120205,1751029855359,-238.482201,0.00022465,7]
[368120206,1751029855369,-238.482201,0.00022465,7]
[368120207,1751029855378,-460.0,0.00022465,2]
[368120208,1751029855387,-460.0,0.00022465,2]
[368120209,1751029855396,-151.0,0.00022465,7]
[368120210,1751029855406,-151.0,0.00022465,7]
[368120211,1751029855415,-460.0,0.00022465,2]
[368120212,1751029855425,-872.16,0.00022465,2]
[368120213,1751029855434,-490.28,0.00022465,2]
[368120214,1751029855443,-151.0,0.00022465,7]
[368120215,1751029855452,-1294.823434,0.00022465,7]
[368120216,1751029855462,-1294.823434,0.00022465,7]
[368120217,1751029855472,-151.0,0.00022465,7]
[368120218,1751029855481,-3577.22,0.00022465,2]
[368120219,1751029855490,-676.53,0.00022465,2]
[368120220,1751029855500,-1544.03,0.00022465,2]
[368120221,1751029855510,-1861.18,0.00022465,2]
[368120222,1751029855520,-460.0,0.00022465,2]
[368120223,1751029855529,-2946.71,0.00022465,2]
[368120224,1751029855538,-6518.4,0.00022465,2]
[368120225,1751029855548,-460.0,0.00022465,2]
[368120226,1751029855557,-1266.37,0.00022465,2]
[368120227,1751029855567,-460.0,0.00022465,2]
[368120228,1751029855576,-1132.2,0.00022465,2]
[368120229,1751029855585,-765.43,0.00022465,2]
[368120230,1751029855594,-460.0,0.00022465,2]
[368120231,1751029855603,-848.57,0.00022465,2]
[368120232,1751029855613,-460.0,0.00022465,2]
[368120233,1751029855622,-5598.03,0.00022465,2]
[368120234,1751029855631,-460.0,0.00022465,2]
[368120235,1751029855641,-807.46,0.00022465,2]
[368120236,1751029855650,-2217.11,0.00022465,2]
[368120237,1751029855659,-851.26,0.00022465,2]